[Event "Titled Tuesday Blitz December 06 Late 2022"]
[White "Rangel, Daniel"]
[Black "Jobava, Baadur"]
[WhiteFideId "2124475"]
[BlackFideId "13601520"]
[WhiteElo "2225"]
[BlackElo "2582"]
[Result "0-1"]
[Round "01"]
[TimeControl "180+1"]
[Date "2022.12.06"]
[WhiteClock "0:00:05"]
[BlackClock "0:00:25"]

1. d4 {[%clk 0:03:00]}  d5 {[%clk 0:02:57]} 2. c4 {[%clk 0:03:01]}  dxc4 {[%clk 0:02:58]} 3. e3 {[%clk 0:03:01]}  e5 {[%clk 0:02:58]} 4. Bxc4 {[%clk 0:03:01]}  exd4 {[%clk 0:02:59]} 5. exd4 {[%clk 0:03:02]}  Nf6 {[%clk 0:02:59]} 6. Nf3 {[%clk 0:03:02]}  Bd6 {[%clk 0:02:59]} 7. Nc3 {[%clk 0:03:02]}  O-O {[%clk 0:03:00]} 8. O-O {[%clk 0:03:03]}  Nc6 {[%clk 0:02:58]} 9. h3 {[%clk 0:02:58]}  h6 {[%clk 0:02:58]} 10. a3 {[%clk 0:02:56]}  Re8 {[%clk 0:02:57]} 11. Nb5 {[%clk 0:02:44]}  Be6 {[%clk 0:02:50]} 12. Nxd6 {[%clk 0:02:43]}  Qxd6 {[%clk 0:02:49]} 13. Bxe6 {[%clk 0:02:29]}  Rxe6 {[%clk 0:02:50]} 14. Qb3 {[%clk 0:02:26]}  b6 {[%clk 0:02:42]} 15. Be3 {[%clk 0:02:21]}  Nd5 {[%clk 0:02:40]} 16. Rfe1 {[%clk 0:02:18]}  Rae8 {[%clk 0:02:39]} 17. Rac1 {[%clk 0:02:13]}  Nce7 {[%clk 0:02:10]} 18. Ne5 {[%clk 0:02:05]}  Ng6 {[%clk 0:01:55]} 19. Rc6 {[%clk 0:01:59]}  Qd8 {[%clk 0:01:55]} 20. Rxe6 {[%clk 0:01:58]}  Rxe6 {[%clk 0:01:56]} 21. Nxg6 {[%clk 0:01:57]}  Rxg6 {[%clk 0:01:57]} 22. Kh1 {[%clk 0:01:13]}  Qd7 {[%clk 0:01:51]} 23. Qd3 {[%clk 0:01:12]}  c6 {[%clk 0:01:46]} 24. Bd2 {[%clk 0:01:08]}  Re6 {[%clk 0:01:44]} 25. Rxe6 {[%clk 0:01:00]}  Qxe6 {[%clk 0:01:45]} 26. Kg1 {[%clk 0:01:01]}  a5 {[%clk 0:01:32]} 27. Kf1 {[%clk 0:00:58]}  a4 {[%clk 0:01:30]} 28. Qe2 {[%clk 0:00:50]}  Qg6 {[%clk 0:01:25]} 29. g3 {[%clk 0:00:39]}  b5 {[%clk 0:01:09]} 30. Kg2 {[%clk 0:00:37]}  Qc2 {[%clk 0:00:54]} 31. Qe8+ {[%clk 0:00:34]}  Kh7 {[%clk 0:00:55]} 32. Bc3 {[%clk 0:00:32]}  Qg6 {[%clk 0:00:50]} 33. h4 {[%clk 0:00:29]}  h5 {[%clk 0:00:47]} 34. Qe5 {[%clk 0:00:28]}  Qg4 {[%clk 0:00:44]} 35. Bd2 {[%clk 0:00:24]}  g6 {[%clk 0:00:40]} 36. Qe8 {[%clk 0:00:19]}  Qe6 {[%clk 0:00:35]} 37. Qxe6 {[%clk 0:00:18]}  fxe6 {[%clk 0:00:36]} 38. Kf3 {[%clk 0:00:18]}  Kg8 {[%clk 0:00:37]} 39. Ke4 {[%clk 0:00:19]}  Kf7 {[%clk 0:00:38]} 40. Ke5 {[%clk 0:00:19]}  Nb6 {[%clk 0:00:37]} 41. Kd6 {[%clk 0:00:18]}  Nc4+ {[%clk 0:00:38]} 42. Kxc6 {[%clk 0:00:18]}  Nxd2 {[%clk 0:00:39]} 43. Kxb5 {[%clk 0:00:18]}  Ne4 {[%clk 0:00:38]} 44. Kxa4 {[%clk 0:00:18]}  Nxf2 {[%clk 0:00:35]} 45. b4 {[%clk 0:00:17]}  Ke7 {[%clk 0:00:33]} 46. Kb5 {[%clk 0:00:16]}  Ne4 {[%clk 0:00:31]} 47. a4 {[%clk 0:00:17]}  Nxg3 {[%clk 0:00:31]} 48. a5 {[%clk 0:00:18]}  Nf5 {[%clk 0:00:32]} 49. Kc6 {[%clk 0:00:17]}  Nxd4+ {[%clk 0:00:32]} 50. Kc7 {[%clk 0:00:14]}  e5 {[%clk 0:00:31]} 51. a6 {[%clk 0:00:13]}  e4 {[%clk 0:00:31]} 52. Kb7 {[%clk 0:00:10]}  Nb5 {[%clk 0:00:25]} 53. Kb6 {[%clk 0:00:04]}  Nd6 {[%clk 0:00:26]} 54. Kc7 {[%clk 0:00:04]}  e3 {[%clk 0:00:25]} 55. a7 {[%clk 0:00:03]}  Nb5+ {[%clk 0:00:25]} 56. Kb6 {[%clk 0:00:03]}  Nxa7 {[%clk 0:00:26]} 57. Kxa7 {[%clk 0:00:04]}  e2 {[%clk 0:00:27]} 58. b5 {[%clk 0:00:05]}  e1=Q {[%clk 0:00:28]} 59. b6 {[%clk 0:00:05]}  Qxh4 {[%clk 0:00:25]} 0-1


[Site "https://www.chess.com"]

[Event "Titled Tuesday Blitz December 06 Late 2022"]
[White "Riff, Vincent"]
[Black "Curtis, John"]
[WhiteFideId "617776"]
[BlackFideId "3200256"]
[WhiteElo "2369"]
[BlackElo "2203"]
[Result "1-0"]
[Round "01"]
[TimeControl "180+1"]
[Date "2022.12.07"]
[WhiteClock "0:01:09"]
[BlackClock "0:00:14"]

1. d4 {[%clk 0:02:41]}  Nf6 {[%clk 0:02:58]} 2. Nf3 {[%clk 0:02:40]}  d5 {[%clk 0:02:56]} 3. Bf4 {[%clk 0:02:39]}  e6 {[%clk 0:02:55]} 4. e3 {[%clk 0:02:39]}  Bd6 {[%clk 0:02:55]} 5. Bg3 {[%clk 0:02:38]}  Ne4 {[%clk 0:02:54]} 6. Nbd2 {[%clk 0:02:37]}  Bxg3 {[%clk 0:02:50]} 7. hxg3 {[%clk 0:02:36]}  Nxd2 {[%clk 0:02:48]} 8. Qxd2 {[%clk 0:02:36]}  Nd7 {[%clk 0:02:49]} 9. Bd3 {[%clk 0:02:35]}  c5 {[%clk 0:02:35]} 10. c3 {[%clk 0:02:23]}  Qe7 {[%clk 0:02:31]} 11. e4 {[%clk 0:02:11]}  dxe4 {[%clk 0:02:28]} 12. Bxe4 {[%clk 0:02:10]}  Nf6 {[%clk 0:02:24]} 13. Bc2 {[%clk 0:02:09]}  Bd7 {[%clk 0:02:21]} 14. O-O-O {[%clk 0:02:06]}  cxd4 {[%clk 0:02:13]} 15. Qxd4 {[%clk 0:02:03]}  h6 {[%clk 0:01:11]} 16. Ne5 {[%clk 0:01:55]}  Bc6 {[%clk 0:01:05]} 17. g4 {[%clk 0:01:51]}  O-O {[%clk 0:00:40]} 18. g5 {[%clk 0:01:46]}  hxg5 {[%clk 0:00:40]} 19. Qd3 {[%clk 0:01:40]}  Rfd8 {[%clk 0:00:35]} 20. Qh3 {[%clk 0:01:39]}  Rxd1+ {[%clk 0:00:34]} 21. Bxd1 {[%clk 0:01:39]}  Kf8 {[%clk 0:00:32]} 22. Bc2 {[%clk 0:01:24]}  Qc5 {[%clk 0:00:28]} 23. Nxc6 {[%clk 0:01:20]}  bxc6 {[%clk 0:00:23]} 24. Qh8+ {[%clk 0:01:19]}  Ng8 {[%clk 0:00:23]} 25. Bh7 {[%clk 0:01:19]}  Ke7 {[%clk 0:00:20]} 26. Bxg8 {[%clk 0:01:17]}  Qxf2 {[%clk 0:00:19]} 27. Qxg7 {[%clk 0:01:14]}  Qf6 {[%clk 0:00:18]} 28. Qxf6+ {[%clk 0:01:08]}  Kxf6 {[%clk 0:00:19]} 29. Bh7 {[%clk 0:01:09]}  Rh8 {[%clk 0:00:18]} 30. g4 {[%clk 0:01:09]}  Kg7 {[%clk 0:00:18]} 31. Be4 {[%clk 0:01:09]}  Rxh1+ {[%clk 0:00:16]} 32. Bxh1 {[%clk 0:01:10]}  c5 {[%clk 0:00:15]} 33. b4 {[%clk 0:01:10]}  cxb4 {[%clk 0:00:15]} 34. cxb4 {[%clk 0:01:10]}  f5 {[%clk 0:00:15]} 35. b5 {[%clk 0:01:09]}  Kf6 {[%clk 0:00:15]} 36. a4 {[%clk 0:01:09]}  Ke7 {[%clk 0:00:15]} 37. a5 {[%clk 0:01:10]}  Kd6 {[%clk 0:00:15]} 38. Kd2 {[%clk 0:01:08]}  Kc5 {[%clk 0:00:14]} 39. b6 {[%clk 0:01:08]}  axb6 {[%clk 0:00:14]} 40. a6 {[%clk 0:01:09]} 1-0


[Site "https://www.chess.com"]

[Event "Titled Tuesday Blitz December 06 Late 2022"]
[White "Rodriguez Santiago, Jaime"]
[Black "Melikyan, Gnel"]
[WhiteFideId "3100898"]
[BlackFideId "54109990"]
[WhiteElo "2025"]
[BlackElo "2138"]
[Result "1-0"]
[Round "01"]
[TimeControl "180+1"]
[Date "2022.12.07"]
[WhiteClock "0:00:36"]
[BlackClock "0:00:02"]

1. c4 {[%clk 0:02:56]}  Nf6 {[%clk 0:02:59]} 2. Nc3 {[%clk 0:02:54]}  d6 {[%clk 0:02:59]} 3. g3 {[%clk 0:02:55]}  g6 {[%clk 0:02:59]} 4. Bg2 {[%clk 0:02:55]}  Bg7 {[%clk 0:02:59]} 5. e4 {[%clk 0:02:55]}  O-O {[%clk 0:03:00]} 6. Nge2 {[%clk 0:02:51]}  c5 {[%clk 0:02:57]} 7. d3 {[%clk 0:02:50]}  Nc6 {[%clk 0:02:45]} 8. O-O {[%clk 0:02:45]}  Rb8 {[%clk 0:02:39]} 9. h3 {[%clk 0:02:42]}  a6 {[%clk 0:02:36]} 10. a4 {[%clk 0:02:41]}  Nb4 {[%clk 0:02:26]} 11. Be3 {[%clk 0:02:39]}  Bd7 {[%clk 0:02:25]} 12. d4 {[%clk 0:02:21]}  cxd4 {[%clk 0:02:22]} 13. Nxd4 {[%clk 0:02:21]}  Rc8 {[%clk 0:02:14]} 14. b3 {[%clk 0:02:19]}  Nc6 {[%clk 0:02:04]} 15. Qd2 {[%clk 0:02:13]}  Re8 {[%clk 0:02:00]} 16. Rad1 {[%clk 0:02:09]}  Qa5 {[%clk 0:01:58]} 17. Nd5 {[%clk 0:01:57]}  Nxd5 {[%clk 0:01:40]} 18. exd5 {[%clk 0:01:49]}  Qxd2 {[%clk 0:01:28]} 19. Rxd2 {[%clk 0:01:48]}  Nxd4 {[%clk 0:01:26]} 20. Bxd4 {[%clk 0:01:49]}  b5 {[%clk 0:01:27]} 21. cxb5 {[%clk 0:01:40]}  axb5 {[%clk 0:01:26]} 22. a5 {[%clk 0:01:41]}  b4 {[%clk 0:01:23]} 23. Bxg7 {[%clk 0:01:38]}  Kxg7 {[%clk 0:01:24]} 24. Ra1 {[%clk 0:01:37]}  Rc3 {[%clk 0:01:19]} 25. Rb2 {[%clk 0:01:34]}  Ra8 {[%clk 0:01:16]} 26. Bf1 {[%clk 0:01:32]}  Rc5 {[%clk 0:01:15]} 27. a6 {[%clk 0:01:30]}  Bb5 {[%clk 0:01:11]} 28. Bxb5 {[%clk 0:01:20]}  Rxb5 {[%clk 0:01:12]} 29. Rc2 {[%clk 0:01:20]}  Rxd5 {[%clk 0:01:09]} 30. Rc7 {[%clk 0:01:20]}  Kf6 {[%clk 0:00:50]} 31. Rb7 {[%clk 0:01:20]}  Rc5 {[%clk 0:00:46]} 32. Rxb4 {[%clk 0:01:13]}  Rc6 {[%clk 0:00:41]} 33. Rba4 {[%clk 0:01:13]}  Rb6 {[%clk 0:00:38]} 34. b4 {[%clk 0:01:06]}  Ra7 {[%clk 0:00:36]} 35. Kf1 {[%clk 0:01:01]}  e5 {[%clk 0:00:35]} 36. Ke2 {[%clk 0:01:02]}  Ke6 {[%clk 0:00:35]} 37. Kd3 {[%clk 0:01:02]}  d5 {[%clk 0:00:34]} 38. f4 {[%clk 0:00:56]}  e4+ {[%clk 0:00:30]} 39. Kd4 {[%clk 0:00:56]}  f5 {[%clk 0:00:23]} 40. Kc5 {[%clk 0:00:53]}  Rb8 {[%clk 0:00:18]} 41. b5 {[%clk 0:00:53]}  Rc7+ {[%clk 0:00:18]} 42. Kb4 {[%clk 0:00:47]}  Rc4+ {[%clk 0:00:16]} 43. Ka5 {[%clk 0:00:46]}  Rc5 {[%clk 0:00:17]} 44. Rb4 {[%clk 0:00:46]}  d4 {[%clk 0:00:15]} 45. a7 {[%clk 0:00:45]}  Ra8 {[%clk 0:00:14]} 46. Ka6 {[%clk 0:00:43]}  d3 {[%clk 0:00:12]} 47. b6 {[%clk 0:00:42]}  Rc6 {[%clk 0:00:12]} 48. Kb7 {[%clk 0:00:42]}  Rd8 {[%clk 0:00:12]} 49. Kxc6 {[%clk 0:00:40]}  d2 {[%clk 0:00:01]} 50. b7 {[%clk 0:00:37]}  e3 {[%clk 0:00:02]} 51. b8=Q {[%clk 0:00:36]} 1-0


[Site "https://www.chess.com"]

[Event "Titled Tuesday Blitz December 06 Late 2022"]
[White "Ronka, Erik"]
[Black "Melkumyan, Hrant"]
[WhiteFideId "505080"]
[BlackFideId "13302485"]
[WhiteElo "2264"]
[BlackElo "2604"]
[Result "0-1"]
[Round "01"]
[TimeControl "180+1"]
[Date "2022.12.06"]
[WhiteClock "0:00:02"]
[BlackClock "0:01:26"]

1. d4 {[%clk 0:02:58]}  Nf6 {[%clk 0:02:59]} 2. Nf3 {[%clk 0:02:58]}  d5 {[%clk 0:02:58]} 3. g3 {[%clk 0:02:59]}  Bf5 {[%clk 0:02:57]} 4. Bg2 {[%clk 0:02:58]}  e6 {[%clk 0:02:57]} 5. c4 {[%clk 0:02:58]}  c6 {[%clk 0:02:57]} 6. Qb3 {[%clk 0:02:57]}  Qb6 {[%clk 0:02:57]} 7. c5 {[%clk 0:02:56]}  Qxb3 {[%clk 0:02:51]} 8. axb3 {[%clk 0:02:57]}  Na6 {[%clk 0:02:48]} 9. Ra4 {[%clk 0:02:41]}  Be7 {[%clk 0:02:41]} 10. Nc3 {[%clk 0:02:32]}  Bd8 {[%clk 0:02:35]} 11. h3 {[%clk 0:01:56]}  h6 {[%clk 0:02:34]} 12. b4 {[%clk 0:01:53]}  Nc7 {[%clk 0:02:34]} 13. g4 {[%clk 0:01:51]}  Bc2 {[%clk 0:02:31]} 14. Ra3 {[%clk 0:01:49]}  a6 {[%clk 0:02:31]} 15. Bf4 {[%clk 0:01:47]}  Rc8 {[%clk 0:02:26]} 16. Ne5 {[%clk 0:01:38]}  Nd7 {[%clk 0:02:22]} 17. Kd2 {[%clk 0:01:37]}  Bh7 {[%clk 0:02:19]} 18. e3 {[%clk 0:01:35]}  Bh4 {[%clk 0:02:05]} 19. f3 {[%clk 0:01:32]}  Nxe5 {[%clk 0:02:02]} 20. Bxe5 {[%clk 0:01:31]}  f6 {[%clk 0:02:00]} 21. Bd6 {[%clk 0:01:24]}  h5 {[%clk 0:01:59]} 22. f4 {[%clk 0:01:19]}  Kf7 {[%clk 0:01:54]} 23. Bxc7 {[%clk 0:01:17]}  Rxc7 {[%clk 0:01:54]} 24. Bf3 {[%clk 0:01:02]}  Bg6 {[%clk 0:01:46]} 25. Raa1 {[%clk 0:01:01]}  Rcc8 {[%clk 0:01:46]} 26. e4 {[%clk 0:00:57]}  dxe4 {[%clk 0:01:43]} 27. Bxe4 {[%clk 0:00:58]}  Rcd8 {[%clk 0:01:34]} 28. Ke3 {[%clk 0:00:57]}  f5 {[%clk 0:01:28]} 29. Bf3 {[%clk 0:00:29]}  Bf6 {[%clk 0:01:27]} 30. Rad1 {[%clk 0:00:28]}  hxg4 {[%clk 0:01:26]} 31. hxg4 {[%clk 0:00:27]}  Rxh1 {[%clk 0:01:27]} 32. Bxh1 {[%clk 0:00:27]}  fxg4 {[%clk 0:01:28]} 33. Be4 {[%clk 0:00:20]}  Bf5 {[%clk 0:01:28]} 34. Bg2 {[%clk 0:00:12]}  g5 {[%clk 0:01:27]} 35. fxg5 {[%clk 0:00:04]}  Bxg5+ {[%clk 0:01:28]} 36. Ke2 {[%clk 0:00:05]}  Bf6 {[%clk 0:01:28]} 37. Ne4 {[%clk 0:00:04]}  Bxe4 {[%clk 0:01:26]} 38. Bxe4 {[%clk 0:00:04]}  Rxd4 {[%clk 0:01:24]} 39. Rxd4 {[%clk 0:00:03]}  Bxd4 {[%clk 0:01:25]} 40. Kf1 {[%clk 0:00:02]}  Bxb2 {[%clk 0:01:25]} 41. Kg2 {[%clk 0:00:02]}  Ba3 {[%clk 0:01:25]} 42. Kg3 {[%clk 0:00:02]}  Bxb4 {[%clk 0:01:26]} 0-1


[Site "https://www.chess.com"]

[Event "Titled Tuesday Blitz December 06 Late 2022"]
[White "Rose, Felix"]
[Black "Dimitrov, Atanas"]
[WhiteFideId "5105722"]
[BlackFideId "2901315"]
[WhiteElo "2039"]
[BlackElo "2602"]
[Result "1/2-1/2"]
[Round "01"]
[TimeControl "180+1"]
[Date "2022.12.07"]
[WhiteClock "0:00:16"]
[BlackClock "0:00:10"]

1. e4 {[%clk 0:02:57]}  c5 {[%clk 0:02:47]} 2. Nf3 {[%clk 0:02:57]}  d6 {[%clk 0:02:46]} 3. d4 {[%clk 0:02:57]}  cxd4 {[%clk 0:02:47]} 4. Nxd4 {[%clk 0:02:58]}  Nf6 {[%clk 0:02:48]} 5. Nc3 {[%clk 0:02:57]}  g6 {[%clk 0:02:48]} 6. Be3 {[%clk 0:02:55]}  Bg7 {[%clk 0:02:49]} 7. f3 {[%clk 0:02:55]}  O-O {[%clk 0:02:49]} 8. Qd2 {[%clk 0:02:55]}  Nc6 {[%clk 0:02:50]} 9. O-O-O {[%clk 0:02:55]}  Bd7 {[%clk 0:02:51]} 10. g4 {[%clk 0:02:53]}  Ne5 {[%clk 0:02:51]} 11. h4 {[%clk 0:02:52]}  h5 {[%clk 0:02:51]} 12. gxh5 {[%clk 0:02:49]}  Nxh5 {[%clk 0:02:52]} 13. Rg1 {[%clk 0:02:46]}  Rc8 {[%clk 0:02:52]} 14. Be2 {[%clk 0:02:41]}  Nc4 {[%clk 0:02:47]} 15. Bxc4 {[%clk 0:02:41]}  Rxc4 {[%clk 0:02:48]} 16. Nde2 {[%clk 0:02:41]}  b5 {[%clk 0:02:47]} 17. Bh6 {[%clk 0:02:37]}  Rc5 {[%clk 0:02:14]} 18. Nd5 {[%clk 0:02:26]}  e6 {[%clk 0:02:05]} 19. Bxg7 {[%clk 0:02:23]}  Kxg7 {[%clk 0:02:03]} 20. Ndf4 {[%clk 0:01:40]}  Bc6 {[%clk 0:01:26]} 21. Nxh5+ {[%clk 0:01:34]}  Rxh5 {[%clk 0:01:27]} 22. Qxd6 {[%clk 0:01:30]}  Qxd6 {[%clk 0:01:26]} 23. Rxd6 {[%clk 0:01:30]}  Rc8 {[%clk 0:01:27]} 24. Rg4 {[%clk 0:01:25]}  b4 {[%clk 0:01:18]} 25. Nf4 {[%clk 0:01:20]}  Rc5 {[%clk 0:01:10]} 26. h5 {[%clk 0:01:12]}  g5 {[%clk 0:01:07]} 27. Nd3 {[%clk 0:01:08]}  Rb5 {[%clk 0:01:08]} 28. e5 {[%clk 0:01:03]}  Kh6 {[%clk 0:01:06]} 29. f4 {[%clk 0:00:56]}  gxf4 {[%clk 0:01:03]} 30. Rxf4 {[%clk 0:00:53]}  Be8 {[%clk 0:00:40]} 31. Rxb4 {[%clk 0:00:27]}  Rxb4 {[%clk 0:00:34]} 32. Nxb4 {[%clk 0:00:27]}  Kxh5 {[%clk 0:00:35]} 33. Rd2 {[%clk 0:00:25]}  Kg5 {[%clk 0:00:32]} 34. Rf2 {[%clk 0:00:24]}  Rc7 {[%clk 0:00:28]} 35. b3 {[%clk 0:00:21]}  a5 {[%clk 0:00:22]} 36. Nd3 {[%clk 0:00:21]}  Bc6 {[%clk 0:00:22]} 37. a4 {[%clk 0:00:19]}  Be4 {[%clk 0:00:22]} 38. Kd2 {[%clk 0:00:19]}  Bf5 {[%clk 0:00:18]} 39. c4 {[%clk 0:00:17]}  Rd7 {[%clk 0:00:18]} 40. Rf3 {[%clk 0:00:16]}  Be4 {[%clk 0:00:18]} 41. Re3 {[%clk 0:00:17]}  Kf5 {[%clk 0:00:18]} 42. Kc3 {[%clk 0:00:17]}  Bxd3 {[%clk 0:00:05]} 43. Rxd3 {[%clk 0:00:17]}  Rxd3+ {[%clk 0:00:06]} 44. Kxd3 {[%clk 0:00:18]}  Kxe5 {[%clk 0:00:06]} 45. b4 {[%clk 0:00:16]}  axb4 {[%clk 0:00:07]} 46. a5 {[%clk 0:00:16]}  Kd6 {[%clk 0:00:08]} 47. a6 {[%clk 0:00:15]}  Kc6 {[%clk 0:00:08]} 48. c5 {[%clk 0:00:15]}  b3 {[%clk 0:00:08]} 49. Kc3 {[%clk 0:00:16]}  e5 {[%clk 0:00:09]} 50. Kxb3 {[%clk 0:00:16]}  e4 {[%clk 0:00:09]} 51. Kc4 {[%clk 0:00:16]}  f5 {[%clk 0:00:10]} 52. Kd4 {[%clk 0:00:15]}  Kc7 {[%clk 0:00:10]} 53. Ke3 {[%clk 0:00:15]}  Kc6 {[%clk 0:00:09]} 54. Kf4 {[%clk 0:00:15]}  Kc7 {[%clk 0:00:09]} 55. Ke3 {[%clk 0:00:15]}  Kc6 {[%clk 0:00:10]} 56. Kf4 {[%clk 0:00:16]}  Kc7 {[%clk 0:00:10]} 57. Ke3 {[%clk 0:00:16]} 1/2-1/2


[Site "https://www.chess.com"]

[Event "Titled Tuesday Blitz December 06 Late 2022"]
[White "Rustemov, Alexander"]
[Black "Winterberg, Lukas"]
[WhiteFideId "4119002"]
[BlackFideId "24622702"]
[WhiteElo "2802"]
[BlackElo "2350"]
[Result "1/2-1/2"]
[Round "01"]
[TimeControl "180+1"]
[Date "2022.12.07"]
[WhiteClock "0:00:03"]
[BlackClock "0:00:06"]

1. d4 {[%clk 0:03:00]}  Nf6 {[%clk 0:02:58]} 2. c4 {[%clk 0:03:01]}  e6 {[%clk 0:02:58]} 3. Nf3 {[%clk 0:03:01]}  d5 {[%clk 0:02:59]} 4. Bg5 {[%clk 0:02:59]}  Be7 {[%clk 0:02:59]} 5. e3 {[%clk 0:02:59]}  h6 {[%clk 0:02:59]} 6. Bxf6 {[%clk 0:02:58]}  Bxf6 {[%clk 0:03:00]} 7. Nc3 {[%clk 0:02:59]}  O-O {[%clk 0:03:00]} 8. Rc1 {[%clk 0:02:59]}  c6 {[%clk 0:02:55]} 9. Bd3 {[%clk 0:02:59]}  Nd7 {[%clk 0:02:55]} 10. O-O {[%clk 0:03:00]}  dxc4 {[%clk 0:02:51]} 11. Bxc4 {[%clk 0:03:00]}  b6 {[%clk 0:02:50]} 12. Qe2 {[%clk 0:02:54]}  Bb7 {[%clk 0:02:48]} 13. Rfd1 {[%clk 0:02:52]}  g6 {[%clk 0:02:41]} 14. Ne4 {[%clk 0:02:47]}  Be7 {[%clk 0:02:38]} 15. Ne5 {[%clk 0:02:35]}  Nf6 {[%clk 0:02:26]} 16. Bd3 {[%clk 0:02:20]}  Rc8 {[%clk 0:02:16]} 17. Nxf6+ {[%clk 0:01:49]}  Bxf6 {[%clk 0:02:17]} 18. Be4 {[%clk 0:01:49]}  Qd6 {[%clk 0:02:08]} 19. f4 {[%clk 0:01:44]}  Rc7 {[%clk 0:02:05]} 20. Qf3 {[%clk 0:01:35]}  Rfc8 {[%clk 0:01:54]} 21. Rc2 {[%clk 0:01:32]}  Qe7 {[%clk 0:01:21]} 22. Nxc6 {[%clk 0:01:24]}  Bxc6 {[%clk 0:01:18]} 23. Bxc6 {[%clk 0:01:22]}  Qd6 {[%clk 0:01:12]} 24. Rdc1 {[%clk 0:01:21]}  Bg7 {[%clk 0:01:10]} 25. g3 {[%clk 0:01:20]}  g5 {[%clk 0:01:08]} 26. h3 {[%clk 0:01:10]}  b5 {[%clk 0:01:06]} 27. Kh2 {[%clk 0:01:07]}  a6 {[%clk 0:01:05]} 28. b3 {[%clk 0:01:03]}  f5 {[%clk 0:01:02]} 29. Qg2 {[%clk 0:00:57]}  Kh7 {[%clk 0:00:59]} 30. a4 {[%clk 0:00:55]}  bxa4 {[%clk 0:00:55]} 31. bxa4 {[%clk 0:00:54]}  a5 {[%clk 0:00:55]} 32. Rc4 {[%clk 0:00:46]}  Bf6 {[%clk 0:00:51]} 33. R1c2 {[%clk 0:00:43]}  gxf4 {[%clk 0:00:49]} 34. gxf4 {[%clk 0:00:42]}  Rg7 {[%clk 0:00:49]} 35. Qf3 {[%clk 0:00:42]}  Rcg8 {[%clk 0:00:49]} 36. Bb5 {[%clk 0:00:36]}  Qa3 {[%clk 0:00:47]} 37. Rc7 {[%clk 0:00:34]}  Be7 {[%clk 0:00:44]} 38. Rc1 {[%clk 0:00:24]}  Kh8 {[%clk 0:00:41]} 39. R7c2 {[%clk 0:00:23]}  Bh4 {[%clk 0:00:39]} 40. Bf1 {[%clk 0:00:18]}  Bg3+ {[%clk 0:00:38]} 41. Kh1 {[%clk 0:00:18]}  Qe7 {[%clk 0:00:33]} 42. Rg2 {[%clk 0:00:17]}  Qh4 {[%clk 0:00:32]} 43. Rg1 {[%clk 0:00:17]}  Bf2 {[%clk 0:00:31]} 44. Rxg7 {[%clk 0:00:17]}  Rxg7 {[%clk 0:00:32]} 45. Bg2 {[%clk 0:00:17]}  Qg3 {[%clk 0:00:21]} 46. Rc8+ {[%clk 0:00:16]}  Kh7 {[%clk 0:00:21]} 47. Qa8 {[%clk 0:00:12]}  Rg8 {[%clk 0:00:10]} 48. Rxg8 {[%clk 0:00:07]}  Qxg8 {[%clk 0:00:11]} 49. Qxa5 {[%clk 0:00:07]}  Bxe3 {[%clk 0:00:10]} 50. Qc7+ {[%clk 0:00:07]}  Qg7 {[%clk 0:00:10]} 51. Qxg7+ {[%clk 0:00:04]}  Kxg7 {[%clk 0:00:10]} 52. a5 {[%clk 0:00:04]}  Bxd4 {[%clk 0:00:09]} 53. a6 {[%clk 0:00:05]}  Kf6 {[%clk 0:00:09]} 54. Bf3 {[%clk 0:00:05]}  e5 {[%clk 0:00:08]} 55. fxe5+ {[%clk 0:00:05]}  Kxe5 {[%clk 0:00:09]} 56. Kg2 {[%clk 0:00:06]}  Kf4 {[%clk 0:00:10]} 57. Be2 {[%clk 0:00:06]}  Ba7 {[%clk 0:00:10]} 58. Bd3 {[%clk 0:00:07]}  Ke5 {[%clk 0:00:09]} 59. Kf3 {[%clk 0:00:07]}  f4 {[%clk 0:00:10]} 60. Kg4 {[%clk 0:00:07]}  Bb8 {[%clk 0:00:09]} 61. Kh5 {[%clk 0:00:07]}  Kd4 {[%clk 0:00:10]} 62. Bf1 {[%clk 0:00:06]}  Ke3 {[%clk 0:00:10]} 63. Kxh6 {[%clk 0:00:06]}  Kf2 {[%clk 0:00:11]} 64. Bb5 {[%clk 0:00:06]}  Kg3 {[%clk 0:00:10]} 65. Bf1 {[%clk 0:00:06]}  Kf2 {[%clk 0:00:10]} 66. Be2 {[%clk 0:00:06]}  Kg3 {[%clk 0:00:06]} 67. Bf1 {[%clk 0:00:03]}  Kf2 {[%clk 0:00:06]} 1/2-1/2


[Site "https://www.chess.com"]

[Event "Titled Tuesday Blitz December 06 Late 2022"]
[White "Sadhwani, Raunak"]
[Black "Yurasova, Daria"]
[WhiteFideId "35093487"]
[BlackFideId "34146919"]
[WhiteElo "2657"]
[BlackElo "2098"]
[Result "1-0"]
[Round "01"]
[TimeControl "180+1"]
[Date "2022.12.06"]
[WhiteClock "0:02:27"]
[BlackClock "0:01:51"]

1. c4 {[%clk 0:02:57]}  c5 {[%clk 0:02:59]} 2. Nc3 {[%clk 0:02:54]}  Nf6 {[%clk 0:02:59]} 3. g3 {[%clk 0:02:52]}  e6 {[%clk 0:02:59]} 4. Bg2 {[%clk 0:02:51]}  Be7 {[%clk 0:03:00]} 5. Nf3 {[%clk 0:02:50]}  O-O {[%clk 0:03:00]} 6. O-O {[%clk 0:02:51]}  d6 {[%clk 0:03:00]} 7. d4 {[%clk 0:02:51]}  cxd4 {[%clk 0:03:01]} 8. Nxd4 {[%clk 0:02:51]}  a6 {[%clk 0:03:01]} 9. b3 {[%clk 0:02:52]}  Qc7 {[%clk 0:03:02]} 10. Bb2 {[%clk 0:02:52]}  Nc6 {[%clk 0:03:02]} 11. Rc1 {[%clk 0:02:53]}  Nxd4 {[%clk 0:02:59]} 12. Qxd4 {[%clk 0:02:54]}  Bd7 {[%clk 0:02:58]} 13. e4 {[%clk 0:02:54]}  Bc6 {[%clk 0:02:58]} 14. f4 {[%clk 0:02:54]}  Rfe8 {[%clk 0:02:55]} 15. Kh1 {[%clk 0:02:54]}  Rad8 {[%clk 0:02:54]} 16. a4 {[%clk 0:02:53]}  Qb8 {[%clk 0:02:54]} 17. h3 {[%clk 0:02:51]}  e5 {[%clk 0:02:45]} 18. Qd3 {[%clk 0:02:50]}  exf4 {[%clk 0:02:43]} 19. gxf4 {[%clk 0:02:51]}  Bf8 {[%clk 0:02:43]} 20. Rce1 {[%clk 0:02:47]}  Nd7 {[%clk 0:02:43]} 21. Qg3 {[%clk 0:02:40]}  Nc5 {[%clk 0:02:40]} 22. Rg1 {[%clk 0:02:30]}  Ne6 {[%clk 0:02:10]} 23. Nd5 {[%clk 0:02:28]}  Bxd5 {[%clk 0:02:05]} 24. cxd5 {[%clk 0:02:28]}  Nc5 {[%clk 0:01:51]} 25. Bxg7 {[%clk 0:02:27]} 1-0


[Site "https://www.chess.com"]